fUST/lending_fUST_20240817
["ID","MTS","AMOUNT","RATE_DAILY","PERIOD"]
[335151098,1723890758558,-158.0,0.00044384,120]
[335151099,1723890758568,-158.0,0.00044384,120]
[335151100,1723890758577,-158.0,0.00044384,120]
[335151101,1723890758586,-158.0,0.00044384,120]
[335151102,1723890758595,-158.0,0.00044384,120]
[335151103,1723890758605,-158.0,0.00044384,120]
[335151104,1723890758614,-158.0,0.00044384,120]
[335151105,1723890758623,-158.0,0.00044384,120]
[335151106,1723890758632,-158.0,0.00044384,120]
[335151107,1723890758642,-158.0,0.00044384,120]
[335151108,1723890758651,-158.0,0.00044384,120]
[335151109,1723890758660,-158.0,0.00044384,120]
[335151110,1723890758669,-158.0,0.00044384,120]
[335151111,1723890758679,-158.0,0.00044384,120]
[335151112,1723890758689,-158.0,0.00044384,120]
[335151113,1723890758698,-158.0,0.00044384,120]
[335151114,1723890758708,-158.0,0.00044384,120]
[335151115,1723890758718,-158.0,0.00044384,120]
[335151116,1723890758727,-158.0,0.00044384,120]
[335151117,1723890758739,-158.0,0.00044384,120]
[335151118,1723890758749,-158.0,0.00044384,120]
[335151119,1723890758758,-158.0,0.00044384,120]
[335151120,1723890758768,-158.0,0.00044384,120]
[335151121,1723890758777,-158.0,0.00044384,120]
[335151122,1723890758787,-158.0,0.00044384,120]
[335151123,1723890758796,-158.0,0.00044384,120]
[335151124,1723890758805,-158.0,0.00044384,120]
[335151125,1723890758814,-158.0,0.00044384,120]
[335151126,1723890758824,-153.0,0.00044384,120]
[335151127,1723890758834,-153.0,0.00044384,120]
[335151128,1723890758845,-153.0,0.00044384,120]
[335151129,1723890758856,-153.0,0.00044384,120]
[335151130,1723890758867,-153.0,0.00044384,120]
[335151131,1723890758880,-153.0,0.00044384,120]
[335151132,1723890758891,-153.0,0.00044384,120]
[335151133,1723890759048,-153.0,0.00044384,120]
[335151134,1723890759082,-153.0,0.00044384,120]
[335151135,1723890759094,-153.0,0.00044384,120]
[335151136,1723890759105,-153.0,0.00044384,120]
[335151137,1723890759115,-153.0,0.00044384,120]
[335151138,1723890759128,-153.0,0.00044384,120]
[335151139,1723890759141,-153.0,0.00044384,120]
[335151140,1723890759152,-153.0,0.00044384,120]
[335151141,1723890759165,-153.0,0.00044384,120]
[335151142,1723890759177,-153.0,0.00044384,120]
[335151143,1723890759188,-153.0,0.00044384,120]
[335151144,1723890759199,-153.0,0.00044384,120]
[335151145,1723890759211,-153.0,0.00044384,120]
[335151146,1723890759221,-153.0,0.00044384,120]
[335151147,1723890759232,-153.0,0.00044384,120]
[335151148,1723890759245,-153.0,0.00044384,120]
[335151149,1723890759256,-153.0,0.00044384,120]
[335151150,1723890759268,-153.0,0.00044384,120]
[335151151,1723890759278,-153.0,0.00044384,120]
[335151152,1723890759290,-153.0,0.00044384,120]
[335151153,1723890759302,-153.0,0.00044384,120]
[335151154,1723890759314,-153.0,0.00044384,120]
[335151155,1723890759325,-153.0,0.00044384,120]
[335151156,1723890759337,-233.0,0.00044384,120]
[335151157,1723890759347,-233.0,0.00044384,120]
[335151158,1723890759360,-233.0,0.00044384,120]
[335151159,1723890759372,-233.0,0.00044384,120]
[335151160,1723890759384,-100000.0,0.000445,60]
[335151161,1723890759394,-500.0,0.000448,120]
[335151162,1723890759406,-151.0,0.00044904,120]
[335151163,1723890759416,-471494.7566,0.00044966,30]
[335151164,1723890759426,-2500.0,0.00045,120]
[335151165,1723890759436,-500.0,0.00045271,30]
[335151166,1723890759446,-1800.0,0.0004599,4]
[335151167,1723890759457,-1187.01,0.00046,48]
[335151168,1723890759467,-2500.0,0.00046,120]
[335151169,1723890759477,-468.0,0.00046,7]
[335151170,1723890759487,-190210.72480682,0.00046606,5]
[335151171,1723890759497,-5000.0,0.00046606,120]
[335151172,1723890759507,-5000.0,0.00046606,120]
[335151173,1723890759517,-5000.0,0.00046606,120]
[335151174,1723890759527,-5000.0,0.00046606,120]
[335151175,1723890759537,-5000.0,0.00046606,120]
[335151176,1723890759547,-5000.0,0.00046606,120]
[335151177,1723890759557,-5000.0,0.00046606,120]
[335151178,1723890759566,-5000.0,0.00046606,120]
[335151179,1723890759576,-150.0,0.00046606,14]
[335151180,1723890759586,-150.0,0.00046606,14]
[335151181,1723890759596,-200.0,0.00046606,14]
[335151182,1723890759605,-5000.0,0.00046606,120]
[335151183,1723890759616,-5000.0,0.00046606,120]
[335151184,1723890759625,-5000.0,0.00046606,120]
[335151185,1723890759635,-5000.0,0.00046606,120]
[335151186,1723890759645,-5000.0,0.00046606,120]
[335151187,1723890759654,-5000.0,0.00046606,120]
[335151188,1723890759664,-5000.0,0.00046606,120]
[335151189,1723890759674,-5000.0,0.00046606,120]
[335151190,1723890759683,-5000.0,0.00046606,120]
[335151191,1723890759693,-5000.0,0.00046606,120]
[335151192,1723890759703,-5000.0,0.00046606,120]
[335151193,1723890759712,-5000.0,0.00046606,120]
[335151194,1723890759722,-5000.0,0.00046606,120]
[335151195,1723890759731,-5000.0,0.00046606,120]
[335151196,1723890759742,-5000.0,0.00046606,120]
[335151197,1723890759751,-5000.0,0.00046606,120]
[335151198,1723890759760,-5000.0,0.00046606,120]
[335151199,1723890759770,-5000.0,0.00046606,120]
[335151200,1723890759779,-5000.0,0.00046606,120]
[335151201,1723890759789,-5000.0,0.00046606,120]
[335151202,1723890759798,-5000.0,0.00046606,120]
[335151203,1723890759809,-5000.0,0.00046606,120]
[335151204,1723890759818,-5000.0,0.00046606,120]
[335151205,1723890759827,-5000.0,0.00046606,120]
[335151206,1723890759837,-22175.62979264,0.00046606,7]
[335151207,1723890759846,-17675.86710132,0.00046606,30]
[335151208,1723890759856,-11550.02268888,0.00046606,30]
[335151209,1723890759866,-5332.9691702,0.00046606,30]
[335151210,1723890759876,-340816.68533414,0.00046606,7]
[335151211,1723890759886,-140157.63976873,0.00046606,30]
[335151212,1723890759896,-17792.49598704,0.00046606,120]
[335151213,1723890759906,-1385.23687567,0.00046606,120]
[335151214,1723890759915,-9810.96123194,0.00046606,2]
[335151215,1723890759924,-1009.5440277,0.00046606,120]
[335151216,1723890759934,-259.33036145,0.00046606,120]
[335151217,1723890759944,-500.0,0.00046606,2]
[335151218,1723890759953,-1414.0,0.00046766,2]
[335151219,1723890759963,-150.0,0.00046766,2]
[335151220,1723890759972,-521.0,0.00046766,2]
[335151221,1723890759982,-151.0,0.00046767,120]
[335151222,1723890759991,-1000.0,0.00047,120]
[335151223,1723890760001,-2500.0,0.00047,120]
[335151224,1723890760011,-2000.0,0.00047197,5]
[335151225,1723890760022,-1633.20156054,0.00047389,2]
[335151226,1723890760032,-1000.0,0.00048,120]
[335151227,1723890760042,-2500.0,0.00048,120]
[335151228,1723890760053,-4999.999999,0.00048,120]
[335151229,1723890760063,-294.7678211,0.00048153,2]
[335151230,1723890760075,-160.0,0.00048291,3]
[335151231,1723890760087,-498.62235271,0.000485,120]
[335151232,1723890760096,-151.0,0.0004863,120]
[335151233,1723890760108,-7234.0,0.00048688,120]
[335151234,1723890760120,-2500.0,0.00049,120]
[335151235,1723890760131,-500.0,0.00049279,120]
[335151236,1723890760143,-500.0,0.00049315,2]
[335151237,1723890760158,-500.0,0.00049315,2]
[335151238,1723890760168,-500.0,0.00049315,2]
[335151239,1723890760180,-500.0,0.00049315,2]
[335151240,1723890760192,-500.0,0.00049315,2]
[335151241,1723890760203,-500.0,0.00049315,2]
[335151242,1723890760215,-500.0,0.00049315,2]
[335151243,1723890760228,-500.0,0.00049315,2]
[335151244,1723890760241,-500.0,0.00049315,2]
[335151245,1723890760253,-500.0,0.00049315,2]
[335151246,1723890760264,-500.0,0.00049315,2]
[335151247,1723890760275,-551.41136024,0.00049315,2]
[335151248,1723890760286,-500.0,0.00049315,120]
[335151249,1723890760297,-500.0,0.00049315,120]
[335151250,1723890760309,-500.0,0.00049315,120]
[335151251,1723890760320,-500.0,0.00049315,120]
[335151252,1723890760330,-500.0,0.00049315,120]
[335151253,1723890760340,-500.0,0.00049315,120]
[335151254,1723890760351,-500.0,0.00049315,120]
[335151255,1723890760361,-500.0,0.00049315,120]
[335151256,1723890760371,-500.0,0.00049315,120]
[335151257,1723890760382,-500.0,0.00049315,120]
[335151258,1723890760392,-500.0,0.00049315,120]
[335151259,1723890760402,-197.66788703,0.00049315,120]
[335151260,1723890760413,-500.0,0.00049315,120]
[335151261,1723890760425,-500.0,0.00049315,120]
[335151262,1723890760438,-500.0,0.00049315,120]
[335151263,1723890760448,-500.0,0.00049315,120]
[335151264,1723890760458,-500.0,0.00049315,120]
[335151265,1723890760469,-500.0,0.00049315,120]
[335151266,1723890760479,-500.0,0.00049315,120]
[335151267,1723890760488,-500.0,0.00049315,120]
[335151268,1723890760498,-500.0,0.00049315,120]
[335151269,1723890760507,-500.0,0.00049315,120]
[335151270,1723890760517,-500.0,0.00049315,120]
[335151271,1723890760527,-500.0,0.00049315,120]
[335151272,1723890760537,-500.0,0.00049315,120]
[335151273,1723890760547,-500.0,0.00049315,120]
[335151274,1723890760557,-299.74087634,0.00049315,120]
[335151275,1723890760567,-500.0,0.00049315,120]
[335151276,1723890760576,-500.0,0.00049315,120]
[335151277,1723890760587,-500.0,0.00049315,120]
[335151278,1723890760596,-500.0,0.00049315,120]
[335151279,1723890760606,-500.0,0.00049315,120]
[335151280,1723890760616,-350.0,0.00049315,120]
[335151281,1723890760626,-500.0,0.00049315,120]
[335151282,1723890760637,-500.0,0.00049315,120]
[335151283,1723890760647,-500.0,0.00049315,120]
[335151284,1723890760658,-500.0,0.00049315,120]
[335151285,1723890760669,-500.0,0.00049315,120]
[335151286,1723890760679,-500.0,0.00049315,120]
[335151287,1723890760689,-500.0,0.00049315,120]
[335151288,1723890760699,-500.0,0.00049315,120]
[335151289,1723890760709,-500.0,0.00049315,120]
[335151290,1723890760719,-650.0,0.00049315,120]
[335151291,1723890760730,-500.0,0.00049315,120]
[335151292,1723890760741,-500.0,0.00049315,120]
[335151293,1723890760754,-500.0,0.00049315,120]
[335151294,1723890760765,-500.0,0.00049315,120]
[335151295,1723890760775,-2000.0,0.00049374,4]
[335151296,1723890760786,-1414.0,0.00049766,2]
[335151297,1723890760796,-150.0,0.00049766,2]
[335151298,1723890760806,-521.0,0.00049766,2]
[335151299,1723890760817,-284.40062871,0.0004998,30]
[335151300,1723890760828,-150.16,0.00049999,30]
[335151301,1723890760839,-3200.0,0.00049999,30]
[335151302,1723890760850,-151.70371659,0.0005,7]
[335151303,1723890760860,-4345.68338588,0.0005,60]
[335151304,1723890760872,-200.0,0.0005,120]
[335151305,1723890760884,-154.71377951,0.0005,4]
[335151306,1723890760896,-151.0,0.0005,120]
[335151307,1723890760906,-151.0,0.00050493,120]
[335151308,1723890760917,-710.5593929,0.00050504,2]
[335151309,1723890760929,-207.4743021,0.00050504,2]
[335151310,1723890760941,-207.4743021,0.00050504,2]
[335151311,1723890760954,-307.7753528,0.00050504,30]
[335151312,1723890760966,-207.4743021,0.00050504,2]
[335151313,1723890760977,-207.4743021,0.00050504,2]
[335151314,1723890760987,-207.1375367,0.00050504,2]
[335151315,1723890760997,-150.0,0.00051,90]
[335151316,1723890761008,-3000.0,0.00051,85]
[335151317,1723890761023,-3000.0,0.0005101,85]
[335151318,1723890761033,-3000.0,0.0005102,85]
[335151319,1723890761045,-3000.0,0.0005103,85]
[335151320,1723890761055,-3000.0,0.0005104,85]
[335151321,1723890761064,-1633.20156054,0.00051042,2]
[335151322,1723890761078,-3000.0,0.0005105,85]
[335151323,1723890761088,-3000.0,0.0005106,85]
[335151324,1723890761099,-3000.0,0.0005107,85]
[335151325,1723890761111,-5075.019447,0.0005108,85]
[335151326,1723890761122,-374.7152979,0.00051293,2]
[335151327,1723890761134,-414.8512472,0.00051293,2]
[335151328,1723890761146,-1607.04496663,0.00051371,4]
[335151329,1723890761157,-1000.0,0.00052,120]
[335151330,1723890761168,-1000.0,0.00052,120]
[335151331,1723890761180,-191.929999,0.00052,90]
[335151332,1723890761191,-3000.0,0.00052054,120]
[335151333,1723890761203,-308.7883547,0.00052148,2]
[335151334,1723890761214,-151.0,0.00052356,120]
[335151335,1723890761225,-1000.0,0.00052444,120]
[335151336,1723890761237,-1414.0,0.00052766,120]
[335151337,1723890761248,-150.0,0.00052766,120]
[335151338,1723890761259,-521.0,0.00052766,120]
[335151339,1723890761272,-343.44411683,0.00052872,4]
[335151340,1723890761283,-1000.0,0.00052889,120]
[335151341,1723890761295,-1000.0,0.00053333,120]
[335151342,1723890761305,-3000.0,0.00053424,120]
[335151343,1723890761316,-1000.0,0.00053778,120]
[335151344,1723890761328,-160.0,0.00054127,4]
[335151345,1723890761339,-317.81455464,0.00054127,5]
[335151346,1723890761350,-151.0,0.00054219,120]
[335151347,1723890761361,-1000.0,0.00054222,120]
[335151348,1723890761372,-5000.0,0.0005429,5]
[335151349,1723890761384,-59367.8693819,0.00054353,120]
[335151350,1723890761396,-1000.0,0.00054667,120]
[335151351,1723890761406,-1633.20156054,0.00054695,2]
[335151352,1723890761419,-5000.0,0.000547,30]
[335151353,1723890761429,-930.93,0.00054794,120]
[335151354,1723890761440,-500.0,0.00054794,120]
[335151355,1723890761450,-500.0,0.00054794,120]
[335151356,1723890761460,-500.0,0.00054794,120]
[335151357,1723890761470,-500.0,0.00054794,120]
[335151358,1723890761480,-500.0,0.00054794,120]
[335151359,1723890761490,-500.0,0.00054794,120]
[335151360,1723890761501,-500.0,0.00054794,120]
[335151361,1723890761512,-500.0,0.00054794,120]
[335151362,1723890761522,-500.0,0.00054794,120]
[335151363,1723890761532,-500.0,0.00054794,120]
[335151364,1723890761542,-500.0,0.00054794,120]
[335151365,1723890761552,-500.0,0.00054794,120]
[335151366,1723890761562,-500.0,0.00054794,120]
[335151367,1723890761572,-500.0,0.00054794,120]
[335151368,1723890761581,-500.0,0.00054794,120]
[335151369,1723890761591,-500.0,0.00054794,120]
[335151370,1723890761601,-500.0,0.00054794,120]
[335151371,1723890761611,-500.0,0.00054794,120]
[335151372,1723890761621,-500.0,0.00054794,120]
[335151373,1723890761631,-500.0,0.00054794,120]
[335151374,1723890761640,-500.0,0.00054794,120]
[335151375,1723890761651,-423.60209667,0.00054794,120]
[335151376,1723890761661,-3000.0,0.00054794,120]
[335151377,1723890761671,-209.95,0.00054795,120]
[335151378,1723890761681,-167.8639106,0.00054795,120]
[335151379,1723890761703,-167.8639106,0.00054795,120]
[335151380,1723890761714,-167.8639106,0.00054795,120]
[335151381,1723890761727,-167.8639106,0.00054795,120]
[335151382,1723890761738,-168.36,0.00054795,120]
[335151383,1723890761750,-500.0,0.00054795,120]
[335151384,1723890761761,-500.0,0.00054795,120]
[335151385,1723890761773,-500.0,0.00054795,120]
[335151386,1723890761786,-500.0,0.00054795,120]
[335151387,1723890761796,-500.0,0.00054795,120]
[335151388,1723890761807,-500.0,0.00054795,120]
[335151389,1723890761818,-500.0,0.00054795,120]
[335151390,1723890761829,-500.0,0.00054795,120]
[335151391,1723890761840,-500.0,0.00054795,120]
[335151392,1723890761850,-500.0,0.00054795,120]
[335151393,1723890761861,-500.0,0.00054795,120]
[335151394,1723890761872,-500.0,0.00054795,120]
[335151395,1723890761883,-500.0,0.00054795,120]
[335151396,1723890761894,-500.0,0.00054795,120]
[335151397,1723890761904,-500.0,0.00054795,120]
[335151398,1723890761914,-500.0,0.00054795,120]
[335151399,1723890761923,-500.0,0.00054795,120]
[335151400,1723890761933,-500.0,0.00054795,120]
[335151401,1723890761942,-500.0,0.00054795,120]
[335151402,1723890761952,-500.0,0.00054795,120]
[335151403,1723890761961,-500.0,0.00054795,120]
[335151404,1723890761971,-500.0,0.00054795,120]
[335151405,1723890761983,-500.0,0.00054795,120]
[335151406,1723890761995,-500.0,0.00054795,120]
[335151407,1723890762005,-500.0,0.00054795,120]
[335151408,1723890762015,-500.0,0.00054795,120]
[335151409,1723890762028,-500.0,0.00054795,120]
[335151410,1723890762039,-500.0,0.00054795,120]
[335151411,1723890762052,-500.0,0.00054795,120]
[335151412,1723890762062,-500.0,0.00054795,120]
[335151413,1723890762077,-500.0,0.00054795,120]
[335151414,1723890762087,-500.0,0.00054795,120]
[335151415,1723890762099,-500.0,0.00054795,120]
[335151416,1723890762112,-500.0,0.00054795,120]
[335151417,1723890762123,-500.0,0.00054795,120]
[335151418,1723890762133,-500.0,0.00054795,120]
[335151419,1723890762144,-500.0,0.00054795,120]
[335151420,1723890762157,-500.0,0.00054795,120]
[335151421,1723890762167,-500.0,0.00054795,120]
[335151422,1723890762179,-500.0,0.00054795,120]
[335151423,1723890762189,-500.0,0.00054795,120]
[335151424,1723890762200,-500.0,0.00054795,120]
[335151425,1723890762210,-500.0,0.00054795,120]
[335151426,1723890762222,-5052.68536633,0.00054795,120]
[335151427,1723890762232,-5052.68536633,0.00054795,120]
[335151428,1723890762246,-5052.68536633,0.00054795,120]
[335151429,1723890762257,-5052.68536633,0.00054795,120]
[335151430,1723890762267,-5052.68536633,0.00054795,120]
[335151431,1723890762276,-5010.57965495,0.00054795,120]
[335151432,1723890762286,-5010.57965495,0.00054795,120]
[335151433,1723890762295,-5052.68536633,0.00054795,120]
[335151434,1723890762305,-5010.57965495,0.00054795,120]
[335151435,1723890762316,-5052.68536633,0.00054795,120]
[335151436,1723890762327,-5052.68536633,0.00054795,120]
[335151437,1723890762337,-5010.57965495,0.00054795,120]
[335151438,1723890762348,-5010.57965495,0.00054795,120]
[335151439,1723890762359,-5052.68536633,0.00054795,120]
[335151440,1723890762369,-5010.57965495,0.00054795,120]
[335151441,1723890762380,-5052.68536633,0.00054795,120]
[335151442,1723890762392,-5010.57965495,0.00054795,120]
[335151443,1723890762403,-5010.57965495,0.00054795,120]
[335151444,1723890762414,-5052.68536633,0.00054795,120]
[335151445,1723890762426,-5010.57965495,0.00054795,120]
[335151446,1723890762438,-5010.57965495,0.00054795,120]
[335151447,1723890762448,-5052.68536633,0.00054795,120]
[335151448,1723890762458,-5052.68536633,0.00054795,120]
[335151449,1723890762468,-5010.57965495,0.00054795,120]
[335151450,1723890762479,-5010.57965495,0.00054795,120]
[335151451,1723890762491,-5010.57965495,0.00054795,120]
[335151452,1723890762502,-5010.57965495,0.00054795,120]
[335151453,1723890762513,-5010.57965495,0.00054795,120]
[335151454,1723890762523,-5010.57965495,0.00054795,120]
[335151455,1723890762533,-5010.57965495,0.00054795,120]
[335151456,1723890762543,-5010.57965495,0.00054795,120]
[335151457,1723890762556,-5010.57965495,0.00054795,120]
[335151458,1723890762566,-5010.57965495,0.00054795,120]
[335151459,1723890762577,-5010.57965495,0.00054795,120]
[335151460,1723890762588,-5010.57965495,0.00054795,120]
[335151461,1723890762834,-5010.57965495,0.00054795,120]
[335151462,1723890762845,-5010.57965495,0.00054795,120]
[335151463,1723890762856,-5019.00079722,0.00054795,120]
[335151464,1723890762865,-5019.00079722,0.00054795,120]
[335151465,1723890762875,-5019.00079722,0.00054795,120]
[335151466,1723890762886,-5019.00079722,0.00054795,120]
[335151467,1723890762895,-5019.00079722,0.00054795,120]
[335151468,1723890762906,-5019.00079722,0.00054795,120]
[335151469,1723890762915,-5019.00079722,0.00054795,120]
[335151470,1723890762926,-5019.00079722,0.00054795,120]
[335151471,1723890762935,-5019.00079722,0.00054795,120]
[335151472,1723890762945,-5019.00079722,0.00054795,120]
[335151473,1723890762956,-5019.00079722,0.00054795,120]
[335151474,1723890762965,-5019.00079722,0.00054795,120]
[335151475,1723890762975,-5019.00079722,0.00054795,120]
[335151476,1723890762986,-5019.00079722,0.00054795,120]
[335151477,1723890762998,-5019.00079722,0.00054795,120]
[335151478,1723890763010,-5019.00079722,0.00054795,120]
[335151479,1723890763021,-5019.00079722,0.00054795,120]
[335151480,1723890763031,-5019.00079722,0.00054795,120]
[335151481,1723890763040,-5019.00079721,0.00054795,120]
[335151482,1723890763050,-5019.00079721,0.00054795,120]
[335151483,1723890763060,-1000.0,0.00055111,120]
[335151484,1723890763071,-500.0,0.00055126,120]
[335151485,1723890763084,-187.5,0.0005516,2]
[335151486,1723890763095,-222789.93842262,0.0005543,120]
[335151487,1723890763107,-1000.0,0.00055556,120]
[335151488,1723890763117,-1414.0,0.00055766,120]
[335151489,1723890763130,-150.0,0.00055766,120]
[335151490,1723890763139,-521.0,0.00055766,120]
[335151491,1723890763150,-1000.0,0.00056,120]
[335151492,1723890763161,-503.0,0.00056,30]
[335151493,1723890763173,-150.0,0.00056,120]
[335151494,1723890763183,-151.0,0.00056082,120]
[335151495,1723890763196,-3000.0,0.00056164,120]
[335151496,1723890763208,-1000.0,0.00056444,120]
[335151497,1723890763219,-1000.0,0.00056889,120]
[335151498,1723890763230,-150.0,0.00057,120]
[335151499,1723890763241,-1000.0,0.00057333,120]
[335151500,1723890763251,-930.93,0.00057534,120]
[335151501,1723890763263,-2505.88245269,0.00057534,120]
[335151502,1723890763274,-1000.0,0.00057778,120]
[335151503,1723890763285,-500.0,0.00057885,120]
[335151504,1723890763295,-151.0,0.00057945,120]
[335151505,1723890763307,-200.0,0.00058,120]
[335151506,1723890763318,-1336.38787278,0.0005806,4]
[335151507,1723890763328,-1000.0,0.00058222,120]
[335151508,1723890763340,-1000.0,0.00058667,120]
[335151509,1723890763352,-1414.0,0.00058766,120]
[335151510,1723890763364,-521.0,0.00058766,120]
[335151511,1723890763376,-1322.18,0.00059,30]
[335151512,1723890763387,-1000.0,0.00059111,120]
[335151513,1723890763399,-500.0,0.0005954,120]
[335151514,1723890763410,-694.11580102,0.00059556,120]
[335151515,1723890763422,-151.0,0.00059808,120]
[335151516,1723890763432,-150.0,0.0006,120]
[335151517,1723890763442,-1000.0,0.0006,120]
[335151518,1723890763453,-200.0,0.0006,120]
[335151519,1723890763463,-930.93,0.00060273,120]
[335151520,1723890763475,-500.0,0.00060529,120]
[335151521,1723890763487,-500.0,0.00060935,120]
[335151522,1723890763499,-500.0,0.00060973,120]
[335151523,1723890763510,-150.0,0.00061,120]
[335151524,1723890763522,-151.0,0.00061671,120]
[335151525,1723890763535,-1414.0,0.00061766,120]
[335151526,1723890763546,-521.0,0.00061766,120]
[335151527,1723890763557,-200.0,0.00062,120]
[335151528,1723890763569,-150.0,0.00062,120]
[335151529,1723890763580,-150.0,0.00063,120]
[335151530,1723890763592,-930.93,0.00063013,120]
[335151531,1723890763602,-500.0,0.00063014,120]
[335151532,1723890763612,-500.0,0.00063288,120]
[335151533,1723890763623,-151.0,0.00063534,120]
[335151534,1723890763634,-500.0,0.00063562,120]
[335151535,1723890763646,-500.0,0.00063836,120]
[335151536,1723890763656,-200.0,0.00064,120]
[335151537,1723890763667,-500.0,0.00064038,120]
[335151538,1723890763679,-500.0,0.0006411,120]
[335151539,1723890763691,-500.0,0.00064384,120]
[335151540,1723890763703,-500.0,0.00064658,120]
[335151541,1723890763714,-500.0,0.00064684,120]
[335151542,1723890763726,-1414.0,0.00064766,120]
[335151543,1723890763737,-235.353,0.00064766,120]
[335151544,1723890763748,-200.0,0.00064932,120]
[335151545,1723890763759,-151.0,0.00065397,120]
[335151546,1723890763771,-930.93,0.00065753,120]
[335151547,1723890763783,-500.0,0.0006682,120]
[335151548,1723890763794,-31897.28590798,0.00067165,120]
[335151549,1723890763807,-31897.28590798,0.00067166,120]
[335151550,1723890763818,-31897.28590798,0.00067175,120]
[335151551,1723890763828,-151.0,0.0006726,120]
[335151552,1723890763839,-500.0,0.00067703,120]
[335151553,1723890763849,-1414.0,0.00067766,120]
[335151554,1723890763860,-500.0,0.00067977,120]
[335151555,1723890763871,-500.0,0.00068251,120]
[335151556,1723890763882,-930.93,0.00068493,120]
[335151557,1723890763893,-500.0,0.00068525,120]
[335151558,1723890763903,-500.0,0.00068798,120]
[335151559,1723890763915,-6846.818009,0.00069,40]
[335151560,1723890763927,-3000.0,0.00069,120]
[335151561,1723890763938,-3000.0,0.0006901,120]
[335151562,1723890763948,-3000.0,0.0006902,120]
[335151563,1723890763958,-3000.0,0.0006903,120]
[335151564,1723890763967,-5445.011668,0.0006904,120]
[335151565,1723890763977,-500.0,0.00069072,120]
[335151566,1723890763987,-151.0,0.00069123,120]
[335151567,1723890764000,-500.0,0.00069322,120]
[335151568,1723890764010,-500.0,0.00069346,120]
[335151569,1723890764022,-500.0,0.0006962,120]
[335151570,1723890764033,-500.0,0.00069894,120]
[335151571,1723890764044,-200.0,0.0007,120]
[335151572,1723890764054,-151.0,0.0007,120]
[335151573,1723890764066,-256.94615978,0.00070168,120]
[335151574,1723890764080,-1414.0,0.00070766,120]
[335151575,1723890764092,-151.0,0.00070986,120]
[335151576,1723890764103,-930.93,0.00071232,120]
[335151577,1723890764113,-500.0,0.00072668,120]
[335151578,1723890764125,-151.0,0.00072849,120]
[335151579,1723890764136,-502.855,0.00073766,120]
[335151580,1723890764148,-930.93,0.00073972,120]
[335151581,1723890764159,-2000.0,0.0007423,120]
[335151582,1723890764171,-500.0,0.00074663,120]
[335151583,1723890764182,-151.0,0.00074712,120]
[335151584,1723890764193,-500.0,0.00075,120]
[335151585,1723890764203,-500.0,0.00076547,120]
[335151586,1723890764214,-151.0,0.00076575,120]
[335151587,1723890764224,-930.93,0.00076712,120]
[335151588,1723890764234,-1322.18,0.00078,30]
[335151589,1723890764244,-151.0,0.00078438,120]
[335151590,1723890764255,-500.0,0.00078515,120]
[335151591,1723890764264,-500.0,0.0007875,120]
[335151592,1723890764274,-930.93,0.00079452,120]
[335151593,1723890764285,-277.42939322,0.00079999,30]
[335151594,1723890764296,-384.99039194,0.0008,120]
[335151595,1723890764307,-200.0,0.0008,120]
[335151596,1723890764318,-151.0,0.00080301,120]
[335151597,1723890764329,-151.0,0.00082164,120]